Cogmind - Beta 16 --- EXPLORER MODE // 2025.11.18 @ 14:11:51 Player: K.K.Y. Result: Destroyed by C-17 Slicer via exploding Nuclear Reactor Performance ------------- Evolutions (3) 1500 Regions Visited (7) 1400 Robots Destroyed (111) 555 Value Destroyed (5125) 5125 Prototype IDs (6) 120 Alien Tech Used (0) 0 Bonus (1029) 1029 TOTAL SCORE: 9729 Bonus ------- High Alert Combat Kills 6 Follower Combat Kills 561 Entered Garrisons 200 Used RIF Installer 500 Friendly Fire -238 Cogmind --------- Core Integrity 0/700 Matter 8/300 Energy 76/100 System Corruption 1% Temperature Cool (0) Movement Walking (176) Ox1 Location -7/Factory Parts ------- > --- POWER (2) -------- (None) > --- PROPULSION (7) --- Carbon-fiber Leg VSS Leg Improved Carbon-fiber Leg Improved Carbon-fiber Leg Improved Carbon-fiber Leg > --- UTILITY (3) ------ Huge Storage Unit Machine Analyzer Weapon Cycler > --- WEAPON (2) ------- Heavy Linear Accelerator > --- INVENTORY (25) --- Carbon-fiber Leg Flexi-carbon Leg Flexi-carbon Leg Flexi-carbon Leg Transport Network Coupler Improved Salvage Targeting Computer Kinecellerator Weapon Cycler Relay Coupler [NC] (49) Relay Coupler [Swarmer] (64) Relay Coupler [Cutter] (54) Relay Coupler [Grunt] (66) Relay Coupler [Sentry] (51) Relay Coupler [Demolisher] (49) Relay Coupler [Specialist] (44) Relay Coupler [Hunter] (38) Relay Coupler [Heavy] (23) System Restoration Module System Restoration Module Mini Assault Cannon Heavy Linear Accelerator Peak State ------------ > --- POWER ------------ Improved Deuterium Engine Improved Deuterium Engine > --- PROPULSION ------- Carbon-fiber Leg Carbon-fiber Leg Carbon-fiber Leg VSS Leg Improved Carbon-fiber Leg Improved Carbon-fiber Leg Improved Carbon-fiber Leg > --- UTILITY ---------- Large Storage Unit Machine Analyzer System Restoration Module > --- WEAPON ----------- Heavy Linear Accelerator > --- INVENTORY -------- Transport Network Coupler Improved Salvage Targeting Computer Relay Coupler [NC] Relay Coupler [Swarmer] Relay Coupler [Cutter] Relay Coupler [Grunt] Relay Coupler [Sentry] Relay Coupler [Demolisher] Relay Coupler [Specialist] Relay Coupler [Hunter] Relay Coupler [Heavy] System Restoration Module System Restoration Module Heavy Linear Accelerator [Rating: 62] Favorites ----------- Power Improved Deuterium Engine Engine Improved Deuterium Engine Power Core Fission Core Propulsion Carbon-fiber Leg Treads Light Treads Leg Carbon-fiber Leg Flight Unit Improved Cesium-ion Thruster Utility Large Storage Unit Device Tractor Beam Storage Large Storage Unit Processor Machine Analyzer Protection Light Armor Plating Weapon Hammer Energy Gun EM Pulse Gun Energy Cannon Heavy Ion Cannon Ballistic Gun High-powered Shotgun Ballistic Cannon Heavy Linear Accelerator Launcher Mini Grenade Launcher Impact Weapon Hammer Slashing Weapon Katana Build | -11 -10 -9 -9 -8 -7 -7 -7 ------- Run | Yrd Mat Mat Min Mat Fac Gar Fac Slots Evolved 7 | . 1 2 . 2 2 . . Power 1 | . . . . 1 . . . Propulsion 5 | . 1 1 . 1 2 . . Utility 1 | . . 1 . . . . . Weapon . | . . . . . . . . Parts Attached 83 | 5 4 2 12 30 15 12 3 Power 15 | 1 1 . 2 6 3 2 . Engine 13 | 1 1 . 2 4 3 2 . Core 2 | . . . . 2 . . . Reactor . | . . . . . . . . Propulsion 35 | 2 1 1 6 10 9 6 . Treads 4 | . . . . 4 . . . Leg 23 | 2 1 1 6 . 7 6 . Wheel . | . . . . . . . . Hover . | . . . . . . . . Flight 8 | . . . . 6 2 . . Utility 15 | 1 1 1 2 5 1 1 3 Device 5 | . . . 1 2 . 1 1 Storage 3 | 1 1 . . . . . 1 Processor 5 | . . 1 . 2 1 . 1 Hackware . | . . . . . . . . Protection 2 | . . . 1 1 . . . Artifact . | . . . . . . . . Weapon 18 | 1 1 . 2 9 2 3 . Energy Gun 2 | 1 . . . 1 . . . Energy Cannon 2 | . . . . . . 2 . Ballistic Gun 5 | . . . 1 4 . . . Ballistic Cannon 3 | . . . . 2 . 1 . Launcher 1 | . . . 1 . . . . Special Weapon . | . . . . . . . . Impact Weapon 1 | . 1 . . . . . . Slashing Weapon 4 | . . . . 2 2 . . Piercing Weapon . | . . . . . . . . Special Melee Weapon . | . . . . . . . . Unidentified Prototypes 3 | . . . . 3 . . . Parts Lost 28 | . . 1 6 7 11 . 3 Power 4 | . . . . 2 1 . 1 Propulsion 16 | . . . 4 3 8 . 1 Utility 3 | . . . 1 1 . . 1 Weapon 5 | . . 1 1 1 2 . . Highest Loss Streak 6 | . . 1 1 2 6 . 1 To Critical Strikes 1 | . . . . . . . 1 Average Backups 11 | 1 2 4 9 12 14 14 17 Power . | . . . 1 . . . . Propulsion . | . . . . . . . 1 Utility 7 | . . 2 3 5 8 12 14 Weapon 3 | . 1 2 3 5 6 1 1 Tool/Special . | . . . . . . . . Unused Backups 52 | 2 . . . 8 3 18 21 Power . | . . . . . . . . Propulsion 8 | 2 . . . 2 . . 4 Utility 33 | . . . . 4 . 14 15 Weapon 11 | . . . . 2 3 4 2 Tool/Special . | . . . . . . . . Average Slot Usage (%) 80 | . 84 76 77 70 71 95 85 Engine 10 | . 12 10 9 5 11 14 10 Core 1 | . . . . 5 . . . Treads 2 | . . . . 10 . . . Leg 28 | . 35 33 23 1 17 49 49 Flight 2 | . . . . 10 7 . . Device 3 | . . . 6 3 . 2 5 Storage 8 | . 12 10 10 8 7 7 7 Processor 9 | . . 8 10 8 14 11 7 Energy Gun 1 | . 12 4 . . . . . Energy Cannon 1 | . . . . . . 6 . Ballistic Gun 1 | . . . . 6 1 . . Ballistic Cannon 2 | . . . . 3 . 3 7 Launcher 1 | . . . 7 . . . . Impact Weapon 4 | . 10 10 10 2 . . . Slashing Weapon 1 | . . . . . 11 1 . Peak Build Rating 62 | 5 8 9 16 44 46 62 62 Average Rating 30 | 1 6 7 10 23 35 55 60 On Entrance 20 | . 5 7 7 8 38 40 62 Avg Prop Armor Cover (%) 1 | . . . . . 1 . . Naked Turns . | . . . . . . . . Heaviest Build 128 | 15 37 29 37 48 44 68 128 Greatest Support 111 | 20 30 40 46 80 78 111 111 Greatest Overweight (x) 15 | . 1 . 2 15 11 . 1 Average Overweight (x) . | . . . . . . . . Largest Inventory Capacity 25 | 10 15 15 15 15 15 15 25 Average Capacity 15 | 6 12 15 15 15 15 15 22 Most Carried 22 | 5 4 5 11 15 15 15 22 Average Carried 12 | 1 2 4 9 12 14 14 18 Final Capacity 25 | 10 15 15 15 15 15 15 25 Final Carried 22 | . 3 5 10 15 15 15 22 Class Distribution -------------------- 60% | Hacker-Mutant 28% | Scavenger-Mutant 10% | Commander-Mutant Dominant Class ---------------- Hacker-Mutant | -10/Materials Hacker-Mutant | -9/Materials Scavenger-Mutant | -9/Mines Hacker-Mutant | -8/Materials Hacker-Mutant | -7/Factory Hacker-Mutant | -7/Garrison Hacker-Mutant | -7/Factory Resources | -11 -10 -9 -9 -8 -7 -7 -7 ----------- Run | Yrd Mat Mat Min Mat Fac Gar Fac Matter Collected 2614 | 223 67 15 764 806 211 161 367 Remotely 406 | . . . 362 44 . . . Salvage Created 3688 | . 481 460 441 1344 574 126 262 Parts 175 | . 15 16 26 65 25 5 23 Haulers Intercepted 10 | . 2 2 . 4 1 . 1 Recyclers Shooed 1 | . . . 1 . . . . Parts Field Recycled . | . . . . . . . . Retrieved Matter . | . . . . . . . . Parts Self-Destructed . | . . . . . . . . Prevented . | . . . . . . . . Parts Restored . | . . . . . . . . Kills | -11 -10 -9 -9 -8 -7 -7 -7 ------- Run | Yrd Mat Mat Min Mat Fac Gar Fac Combat Hostiles Destroyed 93 | . 6 6 28 27 10 1 15 Melee 12 | . 1 . . 1 9 1 . Guns 26 | . 4 2 5 14 1 . . Cannons 23 | . . . . 8 . . 15 AOE 23 | . . . 23 . . . . Classes Destroyed 19 | . 5 1 6 2 1 . 4 Worker 6 | . . . 3 2 1 . . Builder 5 | . . . 2 1 . . 2 Tunneler 1 | . . . 1 . . . . Hauler 10 | . 2 2 . 4 1 . 1 Recycler 4 | . 2 1 . 1 . . . Operator 1 | . . . . . . . 1 Watcher 4 | . 1 . . 3 . . . Swarmer 13 | . 2 . 7 2 . . 2 Cutter 1 | . . . . . . . 1 Grunt 34 | . 4 5 5 13 4 . 3 Brawler 1 | . . . 1 . . . . Duelist 7 | . . 1 . 2 4 . . Sentry 11 | . . . . 9 . 1 1 Demolisher 2 | . . . 2 . . . . Specialist 1 | . . . . . . . 1 Hunter 7 | . . . . 1 1 . 5 Programmer 2 | . . . . . 1 . 1 Heavy 1 | . . . . . . . 1 Assembled 16 | . . . 16 . . . . Best Kill Streak 8 | . 3 4 8 5 2 1 5 Combat Bots Only 7 | . 2 3 7 5 2 1 4 Max Kills in Single Turn 3 | . 1 1 3 1 1 1 1 Gunslinging . | . . . . . . . . Exploded 3 | . . . 3 . . . . Melee 1 | . 1 . . 1 1 1 . Uniques/NPCs Destroyed . | . . . . . . . . Combat | -11 -10 -9 -9 -8 -7 -7 -7 -------- Run | Yrd Mat Mat Min Mat Fac Gar Fac Hostile Shots Fired 573 | . 27 31 94 190 119 . 112 Missed 160 | . 7 10 29 49 28 . 37 Hits 413 | . 20 21 65 141 91 . 75 Melee 50 | . . 4 3 3 37 . 3 Projectile 363 | . 20 17 62 138 54 . 72 AOE 16 | . . . 10 . 1 . 5 Critical Strikes 24 | . . 1 1 6 12 . 4 Part Disruptions 1 | . . . . . 1 . . Damage Taken 5173 | . 114 227 1128 1344 1411 . 949 Core 1427 | . 16 29 309 358 557 . 158 Absorbed by Shields . | . . . . . . . . Ignored by Resistances 3096 | . 76 140 669 826 819 . 566 Core Remaining (%) 60 | 100 93 . 15 34 . . . Volleys Fired 302 | . 22 21 76 105 8 22 48 Largest 2 | . 1 1 1 2 1 2 1 Hottest 130 | . 40 40 30 74 25 130 70 Shots Fired 360 | . 22 21 79 145 8 37 48 Gun 164 | . 22 21 29 84 8 . . Cannon 146 | . . . . 61 . 37 48 Launcher 50 | . . . 50 . . . . Special . | . . . . . . . . Kinetic 222 | . . . 29 130 8 7 48 Thermal 45 | . . . . 15 . 30 . Explosive 50 | . . . 50 . . . . Electromagnetic 43 | . 22 21 . . . . . Robot Hit Streak 38 | . 12 28 37 38 14 19 25 Robot Miss Streak 2 | . 1 . 2 2 1 . 1 Penetration Max . | . . . . . . . . Secondary Targets . | . . . . . . . . Shots Hit Robots 356 | . 30 27 45 145 59 9 41 Core Hits 183 | . 9 8 59 62 23 6 16 Critical Kills 1 | . 1 . . . . . . Critical Parts Destroyed 8 | . 1 3 . 4 . . . Critical Strikes 27 | . 2 3 . 10 5 . 7 Blast 13 | . . . . 6 . . 7 Smash 9 | . 2 3 . 4 . . . Sever 5 | . . . . . 5 . . Melee Attacks 97 | . 10 6 4 20 52 5 . Impact 40 | . 10 6 4 20 . . . Slashing 57 | . . . . . 52 5 . Piercing . | . . . . . . . . Sneak Attacks 11 | . 2 1 4 . 3 1 . Combat Hostiles . | . . . . . . . . Follow-up Attacks 4 | . . . . . 4 . . Damage Inflicted 11932 | . 626 486 2585 3022 1686 566 2961 Guns 2363 | . 260 280 308 1332 183 . . Cannons 4148 | . . . . 1186 . 135 2827 Explosions 2296 | . 45 26 2013 . . 125 87 Melee 3064 | . 321 180 264 490 1503 306 . Ramming 61 | . . . . 14 . . 47 Kinetic 5649 | . . . 308 2331 183 . 2827 Thermal 480 | . 45 26 . 187 . 135 87 Explosive 2138 | . . . 2013 . . 125 . Electromagnetic 540 | . 260 280 . . . . . Impact 1255 | . 321 180 264 490 . . . Slashing 1809 | . . . . . 1503 306 . Piercing . | . . . . . . . . Highest Corruption 2 | . . 2 2 . 2 2 1 Average Corruption 1 | . . 1 2 . 1 1 1 Corruption Purged 4 | . . . . . . 2 2 Corruption Blocked . | . . . . . . . . Effects 62 | . . . 37 . 7 18 . Message Errors 11 | . . . 5 . 1 5 . Matter Fused 17 | . . . 12 . 1 4 . Heat Flow Errors 6 | . . . 5 . . 1 . Energy Discharges 15 | . . . 7 . 4 4 . Data Loss (minor) 5 | . . . 3 . 1 1 . Data Loss (major) 3 | . . . 1 . . 2 . Misfires 3 | . . . 3 . . . . Alerts 2 | . . . 1 . . 1 . Overload Shots . | . . . . . . . . Overflow Damage 1031 | . 65 98 237 115 100 . 416 Projectiles 366 | . . . . 7 . . 359 Explosions 155 | . . . 98 . . . 57 Melee 510 | . 65 98 139 108 100 . . Knockbacks 36 | . 2 . 1 22 . . 11 Impact 6 | . 2 . 1 3 . . . Kinetic 22 | . . . . 13 . . 9 Secondary 8 | . . . . 6 . . 2 Self-Inflicted Damage 370 | . . 5 360 5 . . . Shots 18 | . . 1 17 . . . . Rammed 3 | . . . . 3 . . . Targets Rammed 9 | . . . . 4 . . 5 Kicked 5 | . . . . . . . 5 Crushed 1 | . . . . 1 . . . Highest Temperature 483 | . 27 9 272 483 29 276 64 Average Temperature 84 | . 19 4 102 115 10 77 23 Received Heat Transfer 1665 | . 69 102 90 981 336 . 87 Effects 11 | . . . . 9 . 2 . Energy Bleed 2 | . . . . 2 . . . Interference 6 | . . . . 4 . 2 . Damage (major) 3 | . . . . 3 . . . Siege Activations . | . . . . . . . . Martial Activations . | . . . . . . . . Shielding Activations . | . . . . . . . . Robots Disrupted . | . . . . . . . . Combat Hostiles . | . . . . . . . . Robots Corrupted 16 | . 4 5 3 4 . . . Combat Hostiles 9 | . 1 4 . 4 . . . Parts Fried 28 | . 10 7 8 3 . . . Impact Corruptions 22 | . 5 4 6 6 . . 1 Robots Melted . | . . . . . . . . Combat Hostiles . | . . . . . . . . Parts Melted 1 | . . . . 1 . . . Heat Transferred 718 | . 50 50 . 481 . 87 50 Parts Sabotaged . | . . . . . . . . Parts Stolen . | . . . . . . . . Parts Stripped . | . . . . . . . . Power Chain Reactions 2 | . 1 1 . . . . . Alert | -11 -10 -9 -9 -8 -7 -7 -7 ------- Run | Yrd Mat Mat Min Mat Fac Gar Fac Maximum Alert Level 4 | . . . . . . 4 2 Low Security (%) 75 | 100 100 100 100 100 100 17 37 Level 1 12 | . . . . . . 27 50 Level 2 5 | . . . . . . 17 12 Level 3 4 | . . . . . . 25 . Level 4 2 | . . . . . . 12 . Level 5 . | . . . . . . . . High Security . | . . . . . . . . Max Security . | . . . . . . . . Peak Influence 1331 | . 85 85 97 105 50 1331 519 Initial 519 | . . . . . 7 16 519 Average 155 | . 12 18 11 20 6 579 257 Influence Increases 4630 | . 217 190 653 894 272 1335 1069 Destroy 0b10 Robot/C 1880 | . 120 120 260 560 200 20 600 Destroy 0b10 Robot/NC 195 | . 25 15 30 55 10 5 55 Destroy Leader 542 | . 26 34 60 184 52 . 186 Allied During Kill 68 | . . . 19 2 . . 47 Trap Triggered on 0b10 10 | . . . . 10 . . . Successful Hack 88 | . 5 . . 13 10 10 50 Disable Machine 72 | . 8 . 12 . . . 52 Anti-Garrison Action 1200 | . . . . . . 1200 . Destroy Structure 470 | . 3 6 272 10 . 100 79 Partial Spotted 15 | . . . . 15 . . . Lose Combat Pursuer 90 | . 30 15 . 45 . . . Influence Decreases 4482 | . 217 190 653 871 265 34 2252 Entered New Map 842 | . . . . . 16 14 812 Time Decay 3101 | . 217 110 600 835 199 . 1140 Lost Part 163 | . . 10 53 20 50 . 30 Lost Ally 156 | . . . . 16 . 20 120 Purge Threat 220 | . . 70 . . . . 150 Squads Dispatched 23 | . 1 2 . 4 3 . 13 Investigation 11 | . 1 1 . 2 1 . 6 Extermination 3 | . . . . . 1 . 2 Reinforcement 9 | . . 1 . 2 1 . 5 Assault . | . . . . . . . . Garrison . | . . . . . . . . Intercept . | . . . . . . . . Searches Triggered . | . . . . . . . . Construction Impeded 2 | . . . . 1 . . 1 Haulers Reinforced . | . . . . . . . . Active Scanning Responses . | . . . . . . . . Cargo Convoy Interrupts 1 | . . . . . . . 1 Stealth | -11 -10 -9 -9 -8 -7 -7 -7 --------- Run | Yrd Mat Mat Min Mat Fac Gar Fac Distress Signals 9 | . 2 2 1 3 1 . . Communications Jammed . | . . . . . . . . Distress Signals . | . . . . . . . . Times Spotted 147 | . 12 10 32 42 15 . 36 Peak Tracking Total 6 | . 3 4 6 6 4 . 6 Tactical Retreats 7 | . 1 1 2 3 . . . Traps | -11 -10 -9 -9 -8 -7 -7 -7 ------- Run | Yrd Mat Mat Min Mat Fac Gar Fac Traps Triggered 6 | . . 2 . 1 1 1 1 Indirectly . | . . . . . . . . Trap Hack Attempts . | . . . . . . . . Triggered . | . . . . . . . . Disarmed 7 | . . 6 . . . . 1 Reprogrammed 3 | . . . . 3 . . . Reused 1 | . . . . 1 . . . Traps Extracted . | . . . . . . . . Installed . | . . . . . . . . Triggered 1 | . . . . 1 . . . Machines | -11 -10 -9 -9 -8 -7 -7 -7 ---------- Run | Yrd Mat Mat Min Mat Fac Gar Fac Machines Disabled 26 | . 2 . 3 . . 8 13 Max in Single Turn 9 | . 2 . 1 . . 1 9 Garrison Access 1 | . . . . . 1 . . Garrison Relay 6 | . . . . . . 6 . Phase Generator 1 | . . . . . . 1 . Machines Repaired . | . . . . . . . . Machines Dismantled . | . . . . . . . . Machines Sabotaged . | . . . . . . . . Overloaded Fab Kills . | . . . . . . . . Hacking | -11 -10 -9 -9 -8 -7 -7 -7 --------- Run | Yrd Mat Mat Min Mat Fac Gar Fac Machines Accessed 26 | . 5 2 . 5 4 1 9 Terminals 18 | . 5 2 . 4 . 1 6 Fabricators 2 | . . . . . 1 . 1 Repair Stations . | . . . . . . . . Recycling Units . | . . . . . . . . Scanalyzers 3 | . . . . . 1 . 2 Garrison Access 3 | . . . . 1 2 . . Total Hacks 69 | . 11 8 . 17 6 1 26 Successful 37 | . 7 4 . 9 4 1 12 Failed 32 | . 4 4 . 8 2 . 14 Catastrophic 1 | . . . . . . . 1 Database Lockouts . | . . . . . . . . Manual . | . . . . . . . . Terminals 53 | . 11 8 . 14 . 1 19 Fabricators 4 | . . . . . 1 . 3 Repair Stations . | . . . . . . . . Recycling Units . | . . . . . . . . Scanalyzers 7 | . . . . . 3 . 4 Garrison Access 5 | . . . . 3 2 . . Terminal Hacks 28 | . 7 4 . 8 . 1 8 Robot Analysis 2 | . 2 . . . . . . Prototype ID Bank 1 | . . . . . . . 1 Emergency Access Points 3 | . 1 1 . . . 1 . Alert Level 1 | . . . . 1 . . . Unreport Threat 2 | . . 1 . . . . 1 Locate Traps 1 | . . . . 1 . . . Disarm Traps 3 | . . 1 . . . . 2 Reprogram Traps 1 | . . . . 1 . . . Patrol Status 1 | . . . . 1 . . . Recall Investigation 2 | . . . . . . . 2 Hauler Manifests 2 | . 1 . . 1 . . . Registered Components 3 | . 1 . . 1 . . 1 Zone Layout 6 | . 2 1 . 2 . . 1 Fabricator Hacks 1 | . . . . . 1 . . Network Status 1 | . . . . . 1 . . Repair Station Hacks . | . . . . . . . . Recycling Unit Hacks . | . . . . . . . . Scanalyzer 5 | . . . . . 1 . 4 Retrieve Study 5 | . . . . . 1 . 4 Garrison Access Hacks 3 | . . . . 1 2 . . Unlock Access 2 | . . . . 1 1 . . Seal Access 1 | . . . . . 1 . . Unauthorized Hacks . | . . . . . . . . Terminals . | . . . . . . . . Fabricators . | . . . . . . . . Repair Stations . | . . . . . . . . Recycling Units . | . . . . . . . . Scanalyzers . | . . . . . . . . Garrison Access . | . . . . . . . . Data Cores Recovered 1 | . . . . . . . 1 Used . | . . . . . . . . Hacking Detections 20 | . 2 2 . 5 1 1 9 Full Trace Events 11 | . 1 1 . 3 1 . 5 Feedback Events 1 | . . . . . . . 1 Corruption 1 | . . . . . . . 1 Feedback Blocked . | . . . . . . . . Robot Schematics Acquired . | . . . . . . . . Robots Built . | . . . . . . . . Authchips . | . . . . . . . . Time . | . . . . . . . . Total Robot Build Rating . | . . . . . . . . Part Schematics Acquired . | . . . . . . . . Parts Built . | . . . . . . . . Authchips . | . . . . . . . . Time . | . . . . . . . . Total Part Build Rating . | . . . . . . . . Part Studies Acquired 4 | . . . . . 1 . 3 Parts Repaired . | . . . . . . . . Time . | . . . . . . . . Parts Recycled . | . . . . . . . . Recycled Matter . | . . . . . . . . Retrieved Matter . | . . . . . . . . Retrieved Components . | . . . . . . . . Parts Scanalyzed . | . . . . . . . . Part Schematics Acquired . | . . . . . . . . Parts Damaged . | . . . . . . . . Bothacking | -11 -10 -9 -9 -8 -7 -7 -7 ------------ Run | Yrd Mat Mat Min Mat Fac Gar Fac Used RIF Installer 1 | . . . . . . 1 . Robots Hacked . | . . . . . . . . Non-combat . | . . . . . . . . Combat . | . . . . . . . . Robot Hacks Applied . | . . . . . . . . Relay Couplers Released 25 | . . . . . . 25 . Machine Destruction 25 | . . . . . . 25 . Fabnet Peak Effective % . | . . . . . . . . Robots Rewired 6 | . . . . . . 6 . Allies Hacked . | . . . . . . . . Hacks Repelled . | . . . . . . . . Allies | -11 -10 -9 -9 -8 -7 -7 -7 -------- Run | Yrd Mat Mat Min Mat Fac Gar Fac Total Allies 13 | . . . 5 . . 8 . Largest Group 7 | . . . 5 2 . 7 7 Highest-Rated Group 328 | . . . 85 45 . 328 328 Highest-Rated Ally 95 | . . . 31 31 . 95 95 Total Orders . | . . . . . . . . Ally Attacks 79 | . . . 2 5 . . 72 Total Damage 2638 | . . . 11 112 . . 2515 Kills 25 | . . . 1 1 . . 23 Allies Corrupted . | . . . . . . . . Allies Melted . | . . . . . . . . Intel | -11 -10 -9 -9 -8 -7 -7 -7 ------- Run | Yrd Mat Mat Min Mat Fac Gar Fac Active Infowar (turns) 8454 | . . 299 2550 1483 846 1742 1534 T.N.C. 3914 | . . 299 2550 1065 . . . Machine Analysis 4540 | . . . . 418 846 1742 1534 Robot Analysis Total 2 | . 2 . . . . . . Derelict Logs Recovered . | . . . . . . . . Drone Launches . | . . . . . . . . Drone Recoveries . | . . . . . . . . Exploration | -11 -10 -9 -9 -8 -7 -7 -7 ------------- Run | Yrd Mat Mat Min Mat Fac Gar Fac Turns Passed 9629 | 48 647 351 2550 1911 846 1742 1534 Spaces Moved 5783 | 52 457 235 1454 988 521 1236 840 Core 57 | 38 . . . 7 12 . . Treads 363 | . . . . 363 . . . Legs 4721 | 14 457 235 1454 86 399 1236 840 Wheels . | . . . . . . . . Hover . | . . . . . . . . Flight 642 | . . . . 532 110 . . Fastest Speed 25 | 50 120 120 120 25 94 114 115 Average Speed 138 | 68 121 120 162 142 126 115 152 Slowest Speed 800 | 120 190 120 260 800 600 120 187 Overloaded Moves . | . . . . . . . . Propulsion Burnouts . | . . . . . . . . Robots Hopped . | . . . . . . . . Potential Cave-ins 5 | . . . 5 . . . . Cave-ins Triggered . | . . . . . . . . Exploration Rate (%) 51 | 3 63 28 102 73 17 99 28 Regions Visited 7 Branch Regions 1 Pre-discovered Areas 1 | . . . 1 . . . . Known Exits Taken 6 | 1 1 1 1 1 1 . . Unknown Exits Taken . | . . . . . . . . Scrap Searched . | . . . . . . . . Spaces Dug 138 | . . . 134 . . 4 . Terrain Destroyed 632 | . 3 5 453 7 . 137 27 Melee . | . . . . . . . . Projectile 21 | . . . . 7 . 6 8 AOE 611 | . 3 5 453 . . 131 19 Terrain Rammed . | . . . . . . . . Walls Destroyed . | . . . . . . . . Machines Disabled . | . . . . . . . . Actions | -11 -10 -9 -9 -8 -7 -7 -7 --------- Run | Yrd Mat Mat Min Mat Fac Gar Fac Total 6907 | 65 511 272 1566 1316 624 1529 1024 Wait 446 | . 10 5 . 112 16 185 118 Move 5777 | 51 456 234 1453 987 521 1235 840 Hop . | . . . . . . . . Pick Up 96 | 7 7 4 16 26 7 21 8 Fast Attach 38 | . . . . 18 15 4 1 Attach 37 | 5 3 2 6 14 3 3 1 Detach 7 | . . . . 5 . 2 . Swap 14 | . 1 . 6 . 1 5 1 Drop 69 | 2 2 . 5 25 6 27 2 Fire 302 | . 22 21 76 105 8 22 48 Melee 92 | . 10 6 4 20 47 5 . Ram 2 | . . . . 2 . . . Kick 5 | . . . . . . . 5 Crush 2 | . . . . 2 . . . Escape Stasis . | . . . . . . . . Rewire 20 | . . . . . . 20 . Trap . | . . . . . . . . Miscellaneous . | . . . . . . . . Route ------- -11/Scrapyard -10/Materials (discovered 3 exits: *Mat x2 / *Min) -9/Materials -9/Mines (discovered 2 exits: *Mat x2) -8/Materials (discovered 3 exits: *Fac x2 / Gar) -7/Factory -7/Garrison (discovered 4 exits: *Fac x4) -7/Factory (discovered 1 exit: *Fac) History --------- Turn | Location | Event 14 | -11/Scrapyard | Identified exit to Materials 14 | -11/Scrapyard | Discovered exit to Materials (range 14) 49 | -11/Scrapyard | Entered Materials 49 | -10/Materials | Evolved 1 slot: Propulsion x1 175 | -10/Materials | Identified exit to Mines 175 | -10/Materials | Discovered exit to Mines (range 8) 303 | -10/Materials | Build established: Hacker-Mutant 312 | -10/Materials | Identified exit to Materials 312 | -10/Materials | Discovered exit to Materials (range 5) 549 | -10/Materials | Derelicts attacked the area 680 | -10/Materials | Discovered exit to Materials (range 3) 696 | -10/Materials | Entered another Materials area 696 | -9/Materials | Evolved 2 slots: Propulsion x1, Utility x1 1005 | -9/Materials | Identified exit to Mines 1005 | -9/Materials | Discovered exit to Mines (range 16) 1047 | -9/Materials | Entered Mines 1048 | -9/Mines | Learned location of Storage (-9) 1087 | -9/Mines | Identified exit to Materials 1087 | -9/Mines | Discovered exit to Materials (range 8) 1184 | -9/Mines | Assembled infested the area 1189 | -9/Mines | Assisted by a Guerilla fighting off Assembled 1191 | -9/Mines | Joined a pair of Derelicts in attacking an 0b10 outpost 1395 | -9/Mines | Destroyed 7 combat bots 1406 | -9/Mines | Core integrity fell below 50% 1644 | -9/Mines | Assisted by bots powering up and referring to "LRC-V3" 1724 | -9/Mines | Build established: Scavenger-Mutant 1815 | -9/Mines | Discovered exit to Materials (range 5) 3172 | -9/Mines | Core integrity fell below 20% 3464 | -9/Mines | Build established: Hacker-Mutant 3597 | -9/Mines | Entered Materials 3597 | -8/Materials | Accompanied by 2 allies 3597 | -8/Materials | Evolved 2 slots: Power x1, Propulsion x1 3602 | -8/Materials | Led the pair of lost Derelicts to an unsafe place 3736 | -8/Materials | Identified exit to Garrison 4537 | -8/Materials | Build established: Scavenger-Mutant 4833 | -8/Materials | Identified exit to Factory 4833 | -8/Materials | Discovered exit to Factory (range 4) 5140 | -8/Materials | Build established: Hacker-Mutant 5310 | -8/Materials | Core integrity fell below 50% 5476 | -8/Materials | Discovered exit to Factory (range 4) 5508 | -8/Materials | Entered Factory 5508 | -7/Factory | Evolved 2 slots: Propulsion x2 5681 | -7/Factory | Lost 5 parts (4n1w) 5923 | -7/Factory | Core integrity fell below 50% 5957 | -7/Factory | Lost 6 parts (1p4n1w) 6285 | -7/Factory | Build established: Scavenger-Mutant 6354 | -7/Factory | Identified exit to Garrison 6354 | -7/Factory | Entered Garrison 6354 | -7/Garrison | Discovered recently destroyed garrison 6529 | -7/Garrison | Garrison Relay disabled 6587 | -7/Garrison | Identified exit to Factory 6587 | -7/Garrison | Discovered exit to Factory (range 8) 6653 | -7/Garrison | Garrison Relay disabled 6689 | -7/Garrison | Build established: Hacker-Mutant 6901 | -7/Garrison | Garrison Relay disabled 7132 | -7/Garrison | Phase Generator disabled 7242 | -7/Garrison | Discovered exit to Factory (range 12) 7284 | -7/Garrison | Garrison Relay disabled 7461 | -7/Garrison | Discovered exit to Factory (range 6) 7635 | -7/Garrison | Found embedded Infiltrators 7666 | -7/Garrison | Garrison Relay disabled 7703 | -7/Garrison | Garrison Relay disabled 7774 | -7/Garrison | Build established: Commander-Mutant 7997 | -7/Garrison | Discovered exit to Factory (range 10) 8007 | -7/Garrison | Installed Relay Interface Framework 8096 | -7/Garrison | Entered Factory 8096 | -7/Factory | Accompanied by 7 allies 8169 | -7/Factory | Identified exit to Factory 8169 | -7/Factory | Discovered exit to Factory (range 10) 8792 | -7/Factory | Build established: Hacker-Mutant 8931 | -7/Factory | Lost 3 allies 8976 | -7/Factory | Core integrity fell below 20% 9022 | -7/Factory | Cargo convoy interrupted 9630 | -7/Factory | Destroyed by C-17 Slicer via exploding Nuclear Reactor Last Messages --------------- 09591_ U-05 Engineer lays Concrete. 09615_ ALERT: Suspicious intruders detected, dispatching Cutter reinforcements to area. 09619_ Knocked back. 09619_ T-07 Excavator knocked back. 09620_ C-17 Slicer destroyed. 09620_ Knocked back. 09620_ T-07 Excavator destroyed. 09621_ >> Machine Analyzer network decryption results: 09621_ Recycling Unit x2 09623_ Carbon-fiber Leg+ severed. 09623_ Imp. Deuterium Engine+ severed. 09630_ Nuclear Reactor explodes. 09630_ T-07 Excavator destroyed. 09630_ Recycling Unit disabled. 09630_ Nuclear Reactor explodes. 09630_ C-17 Slicer destroyed. 09630_ Nuclear Reactor explodes. 09630_ K-01 Serf destroyed. Map ----- +----------------------------------------------------+ | ????"Y"??????????????????????????????????????????? | | ????"""??????????????????????????????????????????? | | ?????????????????????????????????????????????????? | | ?????????????????????????????????????????????????? | | ?????????????????????????????????????????????????? | | ?????????????????????????????????????????????????? | | ?????????????????????????????????????????????????? | | ?????????????????????????????????????????????????? | | ????????????????????????????????????????????###### | | ?????????????????????????????????????? ???? | | ??????????????????????????????????????????? | | ??????????????????????????????????????""""? | | ???????????????????????????????????? "" | | ??????????????????????????????????? | | ???????????????????????????????????# !! ## | | ??????????????????#????????????????# ! #? | | ??????????????????# ???????????????# #? | | ????????????? ##### ###????????????# ** #? | | ????????????## ####????????# ** ## | | ???????????? = ! #####+#### # | | ???????????? # # "# | | ??????????? # """"" # | | ??????????? + """"" # | | ??????????# # """ # | | ??????????# # # | | ??????????# @# " % | | ??????????/ " # " | | ??????????# Y"c# ""T"" " / | | ??????????? """ # """"" # %% | | ???????????# =########### ! | | ????????????# | * | | ???????????? "" | | ??????????????+ "# | | ???"""?"""????# "# | | ???"""?"""????# ## | | ???"""?"""????# #########################+#### | | ????""??""????# ????????????????????? | | ????""??""????# ????????????????????? | | ??????????????# ????"""""""?????????? | | ??????????????# ????"""""""?????????? | | ??????????????+ H ????"""""""??????????"""" """" | | ??????????????# % ????"""""""??????????"""" """" | | ??????????????# ?????????????????????"""" """" | | ??????????????# % ?????"""""""??????????"""" """" | | ?????????????? ?????"""""""??????????"""" """" | | ?????????????? ?????"""""""??????????"""" """" | | ???????????????? ?????"""""""??????????"""" """" | | ????????????????????????????????????????? | | ?????????????????????????????????????????######### | | ?????????????????????????????????????????????????? | +----------------------------------------------------+ Best States ------------- Heat Dissipation 34 Energy Generation 27 Energy Capacity 480 Matter Stores 300 Matter Capacity 300 Sight Range 16 Terrain Scan Density 10 Additional Mass Support 6 Armor Coverage 150 Resistance: KI 35 Resistance: TH 35 Resistance: EX 35 Resistance: EM 35 Resistance: I 35 Resistance: S 35 Resistance: P 35 Weapon Cycling 15 Evasion (%) 65 Core Analysis 6 Recoil Reduction 4 Offensive Hacking 20 Item Schematics ----------------- None Robot Schematics ------------------ None Fabricated ------------ Nothing Repaired ---------- Nothing Studied --------- Xenon Bombardment Thruster | -7/Factory | Hacked Carbon-fiber Leg | -7/Factory | Hacked Imp. Carbon-fiber Leg | -7/Factory | Hacked Imp. Deuterium Engine | -7/Factory | Hacked Alien Tech Used ----------------- None Achievements -------------- Exterminator Challenges ------------ None Game ------ Seed BlastLightpackMagmablaster Manual? 0 Play Time 01:01:13 Cumulative 109.8 hours Start 2025.11.18 @ 13:12:25 End 2025.11.18 @ 14:11:51 Sessions 1 Manual Loads 0 Difficulty Explorer Special Mode None Game No. 125 Rogue 0 Adventurer 0 Explorer 125 Win Type - Total 0 Types 0/0/0/0/0/0/0/0/0/0 Lore% 62 Gallery% 61 Achievement% 47 Wizard Run 0 Options --------- Layout 1 ASCII 0 Keyboard 0 Movement Mouse Keybinds 0 Fullscreen 1 Font 24/Smallcaps Map View 50x35 Zoom Use 0% Tactical HUD 1 Map Filters NONE Filters NONE Steam 1 RUN: c174bb2f-cf85-414e-bb20-ec7465a3cec9